fUST/lending_fUST_20240112
["ID","MTS","AMOUNT","RATE_DAILY","PERIOD"]
[311319609,1705062638925,-171.16873058,0.00018306,2]
[311319611,1705062638935,-1579.25587195,0.00019,2]
[311319613,1705062638946,-166.896625,0.00019178,2]
[311319614,1705062638957,-200.0,0.0002,2]
[311319617,1705062638967,-156.20554179,0.0002,2]
[311319619,1705062638978,-848.51221584,0.0002,2]
[311319620,1705062638992,-155.0310062,0.0002,2]
[311319622,1705062639002,-300.0,0.00021293,2]
[311319624,1705062639014,-2080.28320628,0.00021293,2]
[311319626,1705062639024,-1822.38176649,0.00021293,2]
[311319628,1705062639035,-10191.89813466,0.00021293,2]
[311319630,1705062639045,-533.167173,0.00021549,2]
[311319632,1705062639054,-507.61,0.00021917,2]
[311319634,1705062639064,-500.0,0.00021917,2]
[311319636,1705062639073,-500.0,0.00021917,2]
[311319638,1705062639083,-409.05798696,0.00021917,2]
[311319640,1705062639093,-500.0,0.00021917,2]
[311319642,1705062639104,-500.0,0.00021917,2]
[311319644,1705062639113,-500.0,0.00021917,2]
[311319646,1705062639123,-503.3769544,0.00021917,2]
[311319648,1705062639133,-500.0,0.00021917,2]
[311319650,1705062639143,-500.0,0.00021917,2]
[311319652,1705062639153,-500.0,0.00021917,2]
[311319654,1705062639163,-500.0,0.00021917,2]
[311319656,1705062639173,-500.0,0.00021917,2]
[311319658,1705062639182,-561.16,0.00021917,2]
[311319660,1705062639191,-500.0,0.00021917,2]
[311319662,1705062639201,-500.0,0.00021917,2]
[311319664,1705062639210,-228.44603421,0.00021917,2]
[311319666,1705062639219,-500.0,0.00021917,2]
[311319668,1705062639229,-501.33793308,0.00021917,2]
[311319670,1705062639238,-500.0,0.00021917,2]
[311319672,1705062639248,-500.0,0.00021917,2]
[311319674,1705062639260,-500.0,0.00021917,2]
[311319676,1705062639272,-600.72202178,0.00021917,2]
[311319678,1705062639280,-500.0,0.00021917,2]
[311319680,1705062639290,-1034.8,0.00021917,2]
[311319681,1705062639299,-500.0,0.00021917,2]
[311319684,1705062639310,-500.0,0.00021917,2]
[311319685,1705062639320,-552.36,0.00021917,2]
[311319688,1705062639330,-500.0,0.00021917,2]
[311319690,1705062639340,-500.0,0.00021917,2]
[311319691,1705062639350,-532.07667742,0.00021917,2]
[311319693,1705062639361,-500.0,0.00021917,2]
[311319695,1705062639372,-599.73,0.00021917,2]
[311319697,1705062639382,-2023.68,0.00021917,2]
[311319699,1705062639391,-500.0,0.00021917,2]
[311319701,1705062639402,-500.0,0.00021917,2]
[311319703,1705062639412,-9866.15,0.00021917,2]
[311319705,1705062639422,-500.0,0.00021917,2]
[311319707,1705062639433,-500.0,0.00021917,2]
[311319709,1705062639443,-500.0,0.00021917,2]
[311319711,1705062639453,-560.49,0.00021917,2]
[311319713,1705062639463,-500.0,0.00021917,2]
[311319715,1705062639473,-500.0,0.00021917,2]
[311319717,1705062639483,-500.0,0.00021917,2]
[311319719,1705062639492,-484.65649682,0.00021917,2]
[311319721,1705062639502,-500.0,0.00021917,2]
[311319723,1705062639519,-511.67588667,0.00021917,2]
[311319725,1705062639528,-500.0,0.00021917,2]
[311319727,1705062639540,-500.0,0.00021917,2]
[311319729,1705062639551,-500.0,0.00021917,2]
[311319731,1705062639562,-500.0,0.00021917,2]
[311319733,1705062639572,-500.0,0.00021917,2]
[311319735,1705062639583,-500.0,0.00021917,2]
[311319737,1705062639593,-500.0,0.00021917,2]
[311319739,1705062639604,-500.0,0.00021917,2]
[311319741,1705062639614,-1914.09,0.00021917,2]
[311319743,1705062639624,-5276.06,0.00021917,2]
[311319745,1705062639632,-500.0,0.00021917,2]
[311319747,1705062639642,-500.0,0.00021917,2]
[311319749,1705062639652,-500.0,0.00021917,2]
[311319751,1705062639662,-500.0,0.00021917,2]
[311319753,1705062639673,-500.0,0.00021917,2]
[311319755,1705062639682,-387.36439512,0.00021917,2]
[311319757,1705062639693,-620.73,0.00021917,2]
[311319759,1705062639703,-505.28330815,0.00021917,2]
[311319761,1705062639713,-535.69623178,0.00021917,2]
[311319763,1705062639723,-500.0,0.00021917,2]
[311319765,1705062639732,-500.0,0.00021917,2]
[311319767,1705062639745,-500.0,0.00021917,2]
[311319769,1705062639757,-500.0,0.00021917,2]
[311319771,1705062639766,-500.0,0.00021917,2]
[311319773,1705062639775,-500.0,0.00021917,2]
[311319775,1705062639784,-500.0,0.00021917,2]
[311319777,1705062639793,-286.77903007,0.00021917,2]
[311319778,1705062639802,-517.73035116,0.00021917,2]
[311319780,1705062639811,-2862.22,0.00021917,2]
[311319782,1705062639820,-8918.68,0.00021917,2]
[311319784,1705062639829,-500.0,0.00021917,2]
[311319786,1705062639838,-500.0,0.00021917,2]
[311319788,1705062639847,-500.0,0.00021917,2]
[311319790,1705062639856,-500.0,0.00021917,2]
[311319792,1705062639865,-500.0,0.00021917,2]
[311319794,1705062639875,-500.0,0.00021917,2]
[311319797,1705062639884,-500.0,0.00021917,2]
[311319799,1705062639893,-500.0,0.00021917,2]
[311319801,1705062639903,-227.16371429,0.00021917,2]
[311319803,1705062639912,-500.0,0.00021917,2]
[311319805,1705062639921,-1546.82,0.00021917,2]
[311319807,1705062639931,-623.85,0.00021917,2]
[311319809,1705062639940,-508.19510463,0.00021917,2]
[311319811,1705062639949,-520.51,0.00021917,2]
[311319813,1705062639959,-514.70488117,0.00021917,2]
[311319815,1705062639969,-500.0,0.00021917,2]
[311319818,1705062639979,-500.0,0.00021917,2]
[311319819,1705062639988,-500.0,0.00021917,2]
[311319821,1705062639998,-470.02436775,0.00021917,2]
[311319824,1705062640009,-500.0,0.00021917,2]
[311319826,1705062640018,-645.44,0.00021917,2]
[311319827,1705062640028,-500.0,0.00021917,2]
[311319829,1705062640038,-500.0,0.00021917,2]
[311319831,1705062640047,-1160.84,0.00021917,2]
[311319833,1705062640056,-166.666666,0.00021918,2]
[311319835,1705062640066,-18285.42435293,0.00022165,2]
[311319837,1705062640075,-1185.47750698,0.00022187,2]
[311319839,1705062640084,-175.78075589,0.00022187,2]
[311319841,1705062640094,-11644.91471353,0.00022187,2]
[311319843,1705062640103,-980.84075748,0.00022187,2]
[311319845,1705062640113,-332.33085601,0.00022187,2]
[311319847,1705062640123,-2992.77070427,0.00022188,2]
[311319849,1705062640132,-1739.61876751,0.00022188,2]
[311319851,1705062640142,-298.36885633,0.00022188,2]
[311319853,1705062640152,-1631.58315033,0.00022188,2]
[311319855,1705062640161,-155.54166956,0.00022189,2]
[311319857,1705062640170,-642.45734522,0.00022189,2]
[311319859,1705062640180,-686.20346903,0.00022189,2]
[311319861,1705062640190,-218.51206177,0.00022189,2]
[311319863,1705062640200,-386.84563712,0.0002219,2]
[311319866,1705062640214,-554.56998802,0.0002219,2]
[311319869,1705062640229,-155.0310062,0.0002219,2]
[311319871,1705062640239,-500.0,0.00022191,2]
[311319888,1705062640393,-500.0,0.00022191,2]
[311319890,1705062640403,-500.0,0.00022191,2]
[311319892,1705062640412,-500.0,0.00022191,2]
[311319894,1705062640422,-500.0,0.00022191,2]
[311319897,1705062640431,-500.0,0.00022191,2]
[311319899,1705062640439,-1034.8,0.00022191,2]
[311319901,1705062640448,-500.0,0.00022191,2]
[311319903,1705062640457,-500.0,0.00022191,2]
[311319905,1705062640466,-552.36,0.00022191,2]
[311319907,1705062640475,-505.57069525,0.00022191,2]
[311319909,1705062640483,-2023.68,0.00022191,2]
[311319912,1705062640492,-500.0,0.00022191,2]
[311319914,1705062640502,-625.28842193,0.00022191,2]
[311319915,1705062640511,-9866.15,0.00022191,2]
[311319917,1705062640520,-500.0,0.00022191,2]
[311319919,1705062640529,-500.0,0.00022191,2]
[311319922,1705062640539,-560.49,0.00022191,2]
[311319924,1705062640548,-500.0,0.00022191,2]
[311319926,1705062640558,-580.19280659,0.00022191,2]
[311319927,1705062640567,-500.0,0.00022191,2]
[311319929,1705062640576,-269.58,0.00022191,2]
[311319931,1705062640585,-510.88740699,0.00022191,2]
[311319933,1705062640594,-1914.09,0.00022191,2]
[311319935,1705062640603,-500.0,0.00022191,2]
[311319937,1705062640612,-500.0,0.00022191,2]
[311319940,1705062640622,-5276.06,0.00022191,2]
[311319942,1705062640631,-500.0,0.00022191,2]
[311319944,1705062640640,-316.04905805,0.00022191,2]
[311319945,1705062640649,-620.73,0.00022191,2]
[311319948,1705062640659,-500.0,0.00022191,2]
[311319949,1705062640668,-500.0,0.00022191,2]
[311319951,1705062640677,-500.0,0.00022191,2]
[311319953,1705062640686,-500.0,0.00022191,2]
[311319955,1705062640695,-500.0,0.00022191,2]
[311319957,1705062640704,-500.0,0.00022191,2]
[311319959,1705062640714,-2862.22,0.00022191,2]
[311319961,1705062640723,-8918.68,0.00022191,2]
[311319963,1705062640732,-500.0,0.00022191,2]
[311319965,1705062640741,-500.0,0.00022191,2]
[311319967,1705062640750,-363.08490721,0.00022191,2]
[311319970,1705062640762,-503.29988254,0.00022191,2]
[311319971,1705062640771,-500.0,0.00022191,2]
[311319973,1705062640781,-1546.82,0.00022191,2]
[311319975,1705062640792,-623.85,0.00022191,2]
[311319977,1705062640801,-520.51,0.00022191,2]
[311319979,1705062640812,-500.0,0.00022191,2]
[311319981,1705062640821,-500.0,0.00022191,2]
[311319983,1705062640830,-645.44,0.00022191,2]
[311319985,1705062640839,-500.0,0.00022191,2]
[311319987,1705062640848,-1160.84,0.00022191,2]
[311319989,1705062640857,-171.16873058,0.00022396,2]
[311319991,1705062640866,-166.666666,0.00022431,2]
[311319993,1705062640876,-500.0,0.00022465,2]
[311319995,1705062640885,-500.0,0.00022465,2]
[311319997,1705062640894,-500.0,0.00022465,2]
[311319999,1705062640903,-500.0,0.00022465,2]
[311320001,1705062640912,-500.0,0.00022465,2]
[311320003,1705062640921,-500.0,0.00022465,2]
[311320005,1705062640930,-1034.8,0.00022465,2]
[311320007,1705062640939,-500.0,0.00022465,2]
[311320009,1705062640948,-500.0,0.00022465,2]
[311320011,1705062640958,-552.36,0.00022465,2]
[311320013,1705062640967,-2023.68,0.00022465,2]
[311320015,1705062640976,-500.0,0.00022465,2]
[311320017,1705062640985,-9866.15,0.00022465,2]
[311320019,1705062640994,-500.0,0.00022465,2]
[311320021,1705062641003,-560.49,0.00022465,2]
[311320023,1705062641016,-500.0,0.00022465,2]
[311320025,1705062641026,-500.0,0.00022465,2]
[311320028,1705062641036,-1914.09,0.00022465,2]
[311320030,1705062641045,-297.81780328,0.00022465,2]
[311320031,1705062641054,-500.0,0.00022465,2]
[311320033,1705062641063,-5276.06,0.00022465,2]
[311320035,1705062641073,-500.0,0.00022465,2]
[311320037,1705062641082,-620.73,0.00022465,2]
[311320039,1705062641091,-500.0,0.00022465,2]
[311320041,1705062641101,-500.0,0.00022465,2]
[311320044,1705062641111,-500.0,0.00022465,2]
[311320046,1705062641120,-500.0,0.00022465,2]
[311320047,1705062641130,-500.0,0.00022465,2]
[311320049,1705062641140,-2862.22,0.00022465,2]
[311320051,1705062641149,-8918.68,0.00022465,2]
[311320053,1705062641157,-482.44626768,0.00022465,2]
[311320055,1705062641167,-635.53581168,0.00022465,2]
[311320057,1705062641177,-500.0,0.00022465,2]
[311320059,1705062641186,-1546.82,0.00022465,2]
[311320060,1705062641196,-623.85,0.00022465,2]
[311320061,1705062641205,-520.51,0.00022465,2]
[311320062,1705062641214,-500.0,0.00022465,2]
[311320063,1705062641224,-645.44,0.00022465,2]
[311320064,1705062641234,-500.0,0.00022465,2]
[311320065,1705062641244,-1160.84,0.00022465,2]
[311320066,1705062641254,-500.0,0.00022739,2]
[311320068,1705062641268,-500.0,0.00022739,2]
[311320070,1705062641278,-500.0,0.00022739,2]
[311320072,1705062641288,-500.0,0.00022739,2]
[311320074,1705062641297,-500.0,0.00022739,2]
[311320076,1705062641307,-500.0,0.00022739,2]
[311320078,1705062641316,-1034.8,0.00022739,2]
[311320080,1705062641325,-500.0,0.00022739,2]
[311320082,1705062641334,-500.0,0.00022739,2]
[311320084,1705062641343,-552.36,0.00022739,2]
[311320086,1705062641353,-2023.68,0.00022739,2]
[311320088,1705062641362,-500.0,0.00022739,2]
[311320090,1705062641372,-9866.15,0.00022739,2]
[311320092,1705062641380,-500.0,0.00022739,2]
[311320094,1705062641390,-560.49,0.00022739,2]
[311320096,1705062641399,-500.0,0.00022739,2]
[311320098,1705062641408,-500.0,0.00022739,2]
[311320100,1705062641417,-1914.09,0.00022739,2]
[311320102,1705062641426,-500.0,0.00022739,2]
[311320104,1705062641435,-5276.06,0.00022739,2]
[311320106,1705062641444,-500.0,0.00022739,2]
[311320108,1705062641453,-620.73,0.00022739,2]
[311320110,1705062641462,-500.0,0.00022739,2]
[311320112,1705062641470,-500.0,0.00022739,2]
[311320114,1705062641479,-500.0,0.00022739,2]
[311320116,1705062641488,-500.0,0.00022739,2]
[311320118,1705062641497,-500.0,0.00022739,2]
[311320120,1705062641507,-2862.22,0.00022739,2]
[311320122,1705062641519,-8918.68,0.00022739,2]
[311320123,1705062641530,-500.0,0.00022739,2]
[311320125,1705062641538,-1546.82,0.00022739,2]
[311320128,1705062641551,-623.85,0.00022739,2]
[311320130,1705062641561,-520.51,0.00022739,2]
[311320131,1705062641571,-500.0,0.00022739,2]
[311320134,1705062641580,-645.44,0.00022739,2]
[311320136,1705062641590,-1160.84,0.00022739,2]
[311320138,1705062641602,-166.666666,0.00022944,2]
[311320139,1705062641612,-6801.2087915,0.00023,2]
[311320141,1705062641623,-2093.76186828,0.00023,2]
[311320144,1705062641634,-500.0,0.00023013,2]
[311320146,1705062641644,-500.0,0.00023013,2]
[311320147,1705062641655,-500.0,0.00023013,2]
[311320149,1705062641665,-500.0,0.00023013,2]
[311320151,1705062641675,-500.0,0.00023013,2]
[311320153,1705062641686,-500.0,0.00023013,2]
[311320155,1705062641697,-1034.8,0.00023013,2]
[311320158,1705062641707,-236.96284093,0.00023013,2]
[311320159,1705062641718,-500.0,0.00023013,2]
[311320161,1705062641728,-552.36,0.00023013,2]
[311320164,1705062641738,-2023.68,0.00023013,2]
[311320165,1705062641749,-500.0,0.00023013,2]
[311320168,1705062641761,-9866.15,0.00023013,2]
[311320170,1705062641772,-500.0,0.00023013,2]
[311320172,1705062641783,-560.49,0.00023013,2]
[311320174,1705062641794,-500.0,0.00023013,2]
[311320176,1705062641804,-500.0,0.00023013,2]
[311320178,1705062641814,-1914.09,0.00023013,2]
[311320180,1705062641823,-500.0,0.00023013,2]
[311320182,1705062641833,-5276.06,0.00023013,2]
[311320184,1705062641843,-500.0,0.00023013,2]
[311320185,1705062641855,-620.73,0.00023013,2]
[311320188,1705062641865,-500.0,0.00023013,2]
[311320190,1705062641877,-500.0,0.00023013,2]
[311320191,1705062641888,-500.0,0.00023013,2]
[311320193,1705062641899,-500.0,0.00023013,2]
[311320195,1705062641909,-500.0,0.00023013,2]
[311320197,1705062641920,-2862.22,0.00023013,2]
[311320200,1705062641930,-8918.68,0.00023013,2]
[311320201,1705062641940,-206.31700735,0.00023013,2]
[311320204,1705062641950,-1546.82,0.00023013,2]
[311320205,1705062641960,-623.85,0.00023013,2]
[311320208,1705062641970,-520.51,0.00023013,2]
[311320209,1705062641981,-500.0,0.00023013,2]
[311320212,1705062641991,-645.44,0.00023013,2]
[311320214,1705062642001,-1160.84,0.00023013,2]
[311320215,1705062642013,-500.0,0.00023287,2]
[311320217,1705062642022,-500.0,0.00023287,2]
[311320219,1705062642032,-500.0,0.00023287,2]
[311320221,1705062642041,-285.06651782,0.00023287,2]
[311320223,1705062642051,-500.0,0.00023287,2]
[311320226,1705062642061,-500.0,0.00023287,2]
[311320228,1705062642071,-1034.8,0.00023287,2]
[311320229,1705062642080,-500.0,0.00023287,2]
[311320231,1705062642091,-552.36,0.00023287,2]
[311320233,1705062642100,-2023.68,0.00023287,2]
[311320236,1705062642110,-500.0,0.00023287,2]
[311320237,1705062642119,-9866.15,0.00023287,2]
[311320239,1705062642129,-500.0,0.00023287,2]
[311320241,1705062642138,-560.49,0.00023287,2]
[311320243,1705062642148,-500.0,0.00023287,2]
[311320245,1705062642158,-500.0,0.00023287,2]
[311320248,1705062642167,-1914.09,0.00023287,2]
[311320250,1705062642177,-500.0,0.00023287,2]
[311320252,1705062642186,-5276.06,0.00023287,2]
[311320254,1705062642195,-500.0,0.00023287,2]
[311320255,1705062642204,-620.73,0.00023287,2]
[311320258,1705062642213,-500.0,0.00023287,2]
[311320259,1705062642224,-500.0,0.00023287,2]
[311320262,1705062642234,-500.0,0.00023287,2]
[311320264,1705062642244,-596.81,0.00023287,2]
[311320266,1705062642253,-500.0,0.00023287,2]
[311320268,1705062642266,-2862.22,0.00023287,2]
[311320269,1705062642276,-8918.68,0.00023287,2]
[311320271,1705062642285,-1546.82,0.00023287,2]
[311320273,1705062642295,-623.85,0.00023287,2]
[311320276,1705062642305,-520.51,0.00023287,2]
[311320278,1705062642314,-500.0,0.00023287,2]
[311320280,1705062642325,-645.44,0.00023287,2]
[311320282,1705062642337,-1160.84,0.00023287,2]
[311320284,1705062642346,-151.0,0.00023374,2]
[311320285,1705062642357,-166.666666,0.00023456,2]
[311320287,1705062642368,-500.0,0.00023561,2]
[311320289,1705062642378,-500.0,0.00023561,2]
[311320292,1705062642388,-500.0,0.00023561,2]
[311320293,1705062642399,-556.05540534,0.00023561,2]
[311320296,1705062642410,-500.0,0.00023561,2]
[311320298,1705062642419,-1034.8,0.00023561,2]
[311320299,1705062642429,-500.0,0.00023561,2]
[311320301,1705062642440,-552.36,0.00023561,2]
[311320304,1705062642450,-2023.68,0.00023561,2]
[311320305,1705062642459,-500.0,0.00023561,2]
[311320307,1705062642469,-9866.15,0.00023561,2]
[311320309,1705062642479,-500.0,0.00023561,2]
[311320311,1705062642489,-560.49,0.00023561,2]
[311320313,1705062642498,-500.0,0.00023561,2]
[311320315,1705062642507,-500.0,0.00023561,2]
[311320317,1705062642517,-1914.09,0.00023561,2]
[311320319,1705062642527,-571.84121311,0.00023561,2]
[311320321,1705062642537,-5276.06,0.00023561,2]
[311320323,1705062642547,-500.0,0.00023561,2]
[311320326,1705062642556,-620.73,0.00023561,2]
[311320327,1705062642566,-500.0,0.00023561,2]
[311320330,1705062642575,-500.0,0.00023561,2]
[311320332,1705062642585,-500.0,0.00023561,2]
[311320333,1705062642595,-500.0,0.00023561,2]
[311320335,1705062642605,-2862.22,0.00023561,2]
[311320338,1705062642616,-8918.68,0.00023561,2]
[311320340,1705062642625,-1546.82,0.00023561,2]
[311320341,1705062642635,-623.85,0.00023561,2]
[311320344,1705062642645,-520.51,0.00023561,2]
[311320345,1705062642654,-500.0,0.00023561,2]
[311320347,1705062642665,-645.44,0.00023561,2]
[311320349,1705062642676,-1160.84,0.00023561,2]
[311320352,1705062642685,-500.0,0.00023835,2]
[311320354,1705062642696,-500.0,0.00023835,2]
[311320356,1705062642706,-500.0,0.00023835,2]
[311320358,1705062642716,-500.0,0.00023835,2]
[311320359,1705062642726,-1034.8,0.00023835,2]
[311320361,1705062642735,-500.0,0.00023835,2]
[311320363,1705062642744,-552.36,0.00023835,2]
[311320365,1705062642754,-2023.68,0.00023835,2]
[311320368,1705062642767,-500.0,0.00023835,2]
[311320370,1705062642776,-9866.15,0.00023835,2]
[311320372,1705062642785,-500.0,0.00023835,2]
[311320374,1705062642794,-560.49,0.00023835,2]
[311320375,1705062642803,-500.0,0.00023835,2]
[311320377,1705062642813,-500.0,0.00023835,2]
[311320380,1705062642823,-1914.09,0.00023835,2]
[311320382,1705062642832,-5276.06,0.00023835,2]
[311320384,1705062642841,-500.0,0.00023835,2]
[311320386,1705062642850,-620.73,0.00023835,2]
[311320388,1705062642859,-500.0,0.00023835,2]
[311320391,1705062642868,-500.0,0.00023835,2]
[311320393,1705062642877,-500.0,0.00023835,2]
[311320395,1705062642886,-231.6714126,0.00023835,2]
[311320397,1705062642895,-2862.22,0.00023835,2]
[311320399,1705062642905,-8918.68,0.00023835,2]
[311320400,1705062642914,-1546.82,0.00023835,2]
[311320402,1705062642923,-623.85,0.00023835,2]
[311320423,1705062643020,-520.51,0.00023835,2]
[311320425,1705062643029,-500.0,0.00023835,2]
[311320430,1705062643039,-645.44,0.00023835,2]
[311320433,1705062643049,-1160.84,0.00023835,2]
[311320434,1705062643058,-353.42747819,0.00023927,2]
[311320436,1705062643069,-166.666666,0.00023969,2]
[311320437,1705062643079,-4005.78937176,0.00024,2]
[311320438,1705062643088,-614.24237866,0.00024,2]
[311320439,1705062643097,-500.0,0.00024109,2]
[311320440,1705062643107,-225.77836394,0.00024109,2]
[311320441,1705062643116,-500.0,0.00024109,2]
[311320442,1705062643125,-500.0,0.00024109,2]
[311320443,1705062643134,-1034.8,0.00024109,2]
[311320444,1705062643144,-500.0,0.00024109,2]
[311320445,1705062643153,-552.36,0.00024109,2]
[311320446,1705062643162,-2023.68,0.00024109,2]
[311320447,1705062643171,-500.0,0.00024109,2]
[311320448,1705062643186,-9866.15,0.00024109,2]
[311320449,1705062643195,-500.0,0.00024109,2]
[311320450,1705062643204,-560.49,0.00024109,2]
[311320451,1705062643214,-500.0,0.00024109,2]
[311320452,1705062643224,-500.0,0.00024109,2]
[311320453,1705062643233,-1914.09,0.00024109,2]
[311320454,1705062643243,-5276.06,0.00024109,2]
[311320455,1705062643252,-500.0,0.00024109,2]
[311320456,1705062643263,-620.73,0.00024109,2]
[311320457,1705062643272,-500.0,0.00024109,2]
[311320458,1705062643281,-500.0,0.00024109,2]
[311320459,1705062643290,-421.40104084,0.00024109,2]
[311320460,1705062643299,-2862.22,0.00024109,2]
[311320461,1705062643308,-8918.68,0.00024109,2]
[311320462,1705062643317,-1546.82,0.00024109,2]
[311320463,1705062643325,-623.85,0.00024109,2]
[311320464,1705062643334,-520.51,0.00024109,2]
[311320465,1705062643343,-500.0,0.00024109,2]
[311320466,1705062643356,-645.44,0.00024109,2]
[311320467,1705062643365,-1160.84,0.00024109,2]
[311320468,1705062643374,-500.0,0.00024383,2]
[311320469,1705062643383,-500.0,0.00024383,2]
[311320470,1705062643392,-500.0,0.00024383,2]
[311320471,1705062643400,-1034.8,0.00024383,2]
[311320472,1705062643410,-500.0,0.00024383,2]
[311320473,1705062643418,-552.36,0.00024383,2]
[311320474,1705062643427,-2023.68,0.00024383,2]
[311320475,1705062643436,-500.0,0.00024383,2]
[311320476,1705062643444,-9866.15,0.00024383,2]
[311320477,1705062643453,-500.0,0.00024383,2]
[311320478,1705062643462,-560.49,0.00024383,2]
[311320479,1705062643471,-500.0,0.00024383,2]
[311320480,1705062643479,-500.0,0.00024383,2]
[311320481,1705062643488,-1914.09,0.00024383,2]
[311320482,1705062643497,-5276.06,0.00024383,2]
[311320483,1705062643507,-500.0,0.00024383,2]
[311320484,1705062643518,-620.73,0.00024383,2]
[311320485,1705062643530,-500.0,0.00024383,2]
[311320486,1705062643542,-500.0,0.00024383,2]
[311320487,1705062643551,-2862.22,0.00024383,2]
[311320488,1705062643559,-8918.68,0.00024383,2]
[311320489,1705062643569,-1546.82,0.00024383,2]
[311320490,1705062643578,-623.85,0.00024383,2]
[311320491,1705062643587,-520.51,0.00024383,2]
[311320492,1705062643596,-500.0,0.00024383,2]
[311320493,1705062643606,-645.44,0.00024383,2]
[311320494,1705062643616,-1160.84,0.00024383,2]
[311320495,1705062643625,-166.666666,0.00024482,2]
[311320496,1705062643634,-151.0,0.00024558,2]
[311320497,1705062643643,-1000.0,0.00024657,2]
[311320498,1705062643653,-206.36593232,0.00024657,2]
[311320499,1705062643662,-589.21806816,0.00024657,2]
[311320500,1705062643671,-500.0,0.00024657,2]
[311320501,1705062643681,-500.0,0.00024657,2]
[311320502,1705062643690,-1034.8,0.00024657,2]
[311320503,1705062643700,-500.0,0.00024657,2]
[311320504,1705062643710,-552.36,0.00024657,2]
[311320505,1705062643718,-2023.68,0.00024657,2]
[311320506,1705062643727,-500.0,0.00024657,2]
[311320507,1705062643736,-9866.15,0.00024657,2]
[311320508,1705062643746,-549.78961638,0.00024657,2]
[311320509,1705062643755,-560.49,0.00024657,2]
[311320510,1705062643766,-500.0,0.00024657,2]
[311320511,1705062643777,-500.0,0.00024657,2]
[311320512,1705062643786,-1914.09,0.00024657,2]
[311320513,1705062643794,-5276.06,0.00024657,2]
[311320514,1705062643803,-500.0,0.00024657,2]
[311320516,1705062643812,-620.73,0.00024657,2]
[311320517,1705062643821,-306.57117578,0.00024657,2]
[311320519,1705062643830,-500.0,0.00024657,2]
[311320521,1705062643838,-2862.22,0.00024657,2]
[311320523,1705062643847,-8918.68,0.00024657,2]
[311320525,1705062643856,-1546.82,0.00024657,2]
[311320527,1705062643865,-623.85,0.00024657,2]
[311320529,1705062643874,-520.51,0.00024657,2]
[311320531,1705062643884,-535.83096577,0.00024657,2]
[311320533,1705062643893,-645.44,0.00024657,2]
[311320535,1705062643902,-1160.84,0.00024657,2]
[311320537,1705062643911,-500.0,0.00024931,2]
[311320539,1705062643919,-500.0,0.00024931,2]
[311320541,1705062643928,-1034.8,0.00024931,2]
[311320543,1705062643937,-500.0,0.00024931,2]
[311320545,1705062643946,-552.36,0.00024931,2]
[311320547,1705062643955,-2023.68,0.00024931,2]
[311320549,1705062643964,-500.0,0.00024931,2]
[311320551,1705062643973,-9866.15,0.00024931,2]
[311320553,1705062643983,-560.49,0.00024931,2]
[311320555,1705062643993,-500.0,0.00024931,2]
[311320557,1705062644002,-531.64950814,0.00024931,2]
[311320559,1705062644012,-1914.09,0.00024931,2]